[Event "Early-Titled-Tuesday-Blitz-May-14-2024"]
[Site "Chess.com"]
[Date "2024.05.14"]
[Round "6"]
[White "HeroWilczek"]
[Black "Zhigalko_Sergei"]
[Result "0-1"]
[WhiteElo "2545"]
[BlackElo "2843"]
[TimeControl "180+1"]
[EndTime "9:10:03 PDT"]
[Termination "Zhigalko_Sergei won by checkmate"]

1. Nf3 {[%clk 0:03:00.1]} 1... d5 {[%clk 0:03:00.2]} 2. b3 {[%clk 0:02:59.8]}
2... Bf5 {[%clk 0:02:52.3]} 3. Bb2 {[%clk 0:02:58.7]} 3... e6 {[%clk 0:02:52.8]}
4. e3 {[%clk 0:02:57.7]} 4... Nf6 {[%clk 0:02:51.3]} 5. c4 {[%clk 0:02:57.6]}
5... c6 {[%clk 0:02:45.2]} 6. Be2 {[%clk 0:02:57.8]} 6... h6 {[%clk 0:02:44.6]}
7. O-O {[%clk 0:02:58]} 7... Nbd7 {[%clk 0:02:42.7]} 8. Ne5 {[%clk 0:02:39.4]}
8... Nxe5 {[%clk 0:02:32]} 9. Bxe5 {[%clk 0:02:39]} 9... Bh7 {[%clk 0:02:27.5]}
10. d3 {[%clk 0:02:31.8]} 10... Be7 {[%clk 0:02:21.6]} 11. Nd2 {[%clk
0:02:30.7]} 11... O-O {[%clk 0:02:19.7]} 12. Nf3 {[%clk 0:02:29.7]} 12... a5
{[%clk 0:02:18.7]} 13. a3 {[%clk 0:02:27]} 13... Nd7 {[%clk 0:02:16]} 14. Bb2
{[%clk 0:02:23.4]} 14... Bd6 {[%clk 0:02:16.1]} 15. Qc2 {[%clk 0:02:19.7]} 15...
Qe7 {[%clk 0:02:16.2]} 16. e4 {[%clk 0:02:19.7]} 16... dxe4 {[%clk 0:02:09.3]}
17. dxe4 {[%clk 0:02:20.6]} 17... Rfd8 {[%clk 0:02:09.5]} 18. Rfd1 {[%clk
0:02:17.5]} 18... e5 {[%clk 0:01:45.9]} 19. Ne1 {[%clk 0:01:47.9]} 19... Nc5
{[%clk 0:01:44.5]} 20. Bf3 {[%clk 0:01:46.4]} 20... Qf6 {[%clk 0:01:09.7]} 21.
b4 {[%clk 0:01:42.3]} 21... Ne6 {[%clk 0:01:03.5]} 22. c5 {[%clk 0:01:41.1]}
22... Bc7 {[%clk 0:01:03.6]} 23. Nd3 {[%clk 0:01:37.1]} 23... Ng5 {[%clk
0:01:02.9]} 24. Qe2 {[%clk 0:01:34.6]} 24... axb4 {[%clk 0:01:02.4]} 25. axb4
{[%clk 0:01:34.5]} 25... Rxa1 {[%clk 0:01:02.8]} 26. Bxa1 {[%clk 0:01:33.3]}
26... Qe6 {[%clk 0:00:47.2]} 27. Nxe5 {[%clk 0:01:23.9]} 27... Re8 {[%clk
0:00:46.6]} 28. Ng4 {[%clk 0:01:12]} 28... Nxf3+ {[%clk 0:00:26.6]} 29. Qxf3
{[%clk 0:01:09.2]} 29... Bxe4 {[%clk 0:00:25.1]} 30. Qe2 {[%clk 0:00:51.9]}
30... h5 {[%clk 0:00:09.1]} 31. Ne3 {[%clk 0:00:45.9]} 31... Qg6 {[%clk
0:00:09.4]} 32. f3 {[%clk 0:00:38.7]} 32... Bf5 {[%clk 0:00:08.6]} 33. Qf2
{[%clk 0:00:34.2]} 33... Bh3 {[%clk 0:00:08.8]} 34. Nf1 {[%clk 0:00:28.5]} 34...
Bf4 {[%clk 0:00:05.4]} 35. Kh1 {[%clk 0:00:27.2]} 35... Be6 {[%clk 0:00:03.3]}
36. Qd4 {[%clk 0:00:24.9]} 36... Bc7 {[%clk 0:00:02.5]} 37. Qh4 {[%clk
0:00:17.3]} 37... f6 {[%clk 0:00:02.4]} 38. Ng3 {[%clk 0:00:16.5]} 38... Bf7
{[%clk 0:00:02.2]} 39. Ne4 {[%clk 0:00:13.7]} 39... Bd5 {[%clk 0:00:02.5]} 40.
Nc3 {[%clk 0:00:07.4]} 40... Bf7 {[%clk 0:00:01.9]} 41. Ne4 {[%clk 0:00:07.6]}
41... Bd5 {[%clk 0:00:02.3]} 42. Nc3 {[%clk 0:00:08.2]} 42... Bb3 {[%clk
0:00:02.9]} 43. Rf1 {[%clk 0:00:04.8]} 43... Rd8 {[%clk 0:00:02]} 44. Ne4 {[%clk
0:00:04.7]} 44... Bc4 {[%clk 0:00:02.3]} 45. Re1 {[%clk 0:00:04.5]} 45... Bd5
{[%clk 0:00:02.4]} 46. Nxf6+ {[%clk 0:00:03.4]} 46... gxf6 {[%clk 0:00:02.4]}
47. Bxf6 {[%clk 0:00:04.3]} 47... Rd7 {[%clk 0:00:02.2]} 48. Be5 {[%clk
0:00:04.7]} 48... Bd8 {[%clk 0:00:02.3]} 49. Qf4 {[%clk 0:00:03.4]} 49... Bg5
{[%clk 0:00:02.2]} 50. Qd4 {[%clk 0:00:03.3]} 50... Re7 {[%clk 0:00:02.4]} 51.
Qc3 {[%clk 0:00:03.6]} 51... Bf6 {[%clk 0:00:01.9]} 52. Bxf6 {[%clk 0:00:01.4]}
52... Rxe1+ {[%clk 0:00:02.8]} 53. Qxe1 {[%clk 0:00:01.9]} 53... Qxf6 {[%clk
0:00:03.5]} 54. Qe8+ {[%clk 0:00:02.8]} 54... Kg7 {[%clk 0:00:03.6]} 55. Qe1
{[%clk 0:00:03.7]} 55... h4 {[%clk 0:00:03.4]} 56. Kg1 {[%clk 0:00:04.6]} 56...
Qg5 {[%clk 0:00:02.4]} 57. h3 {[%clk 0:00:03.2]} 57... Bxf3 {[%clk 0:00:01.8]}
58. Qa1+ {[%clk 0:00:02.9]} 58... Kh7 {[%clk 0:00:01.4]} 59. Qb1+ {[%clk
0:00:03.1]} 59... Kh6 {[%clk 0:00:01.7]} 60. Qb2 {[%clk 0:00:04]} 60... Bd5
{[%clk 0:00:01.5]} 61. Qh8+ {[%clk 0:00:04.6]} 61... Kg6 {[%clk 0:00:02.1]} 62.
Qe8+ {[%clk 0:00:05.1]} 62... Kg7 {[%clk 0:00:01.9]} 63. Qd7+ {[%clk 0:00:05.2]}
63... Kh8 {[%clk 0:00:02.1]} 64. Qe8+ {[%clk 0:00:05.1]} 64... Kh7 {[%clk
0:00:01.6]} 65. Qd7+ {[%clk 0:00:05.4]} 65... Kh6 {[%clk 0:00:02.1]} 66. Qd6+
{[%clk 0:00:05.8]} 66... Qg6 {[%clk 0:00:02.4]} 67. Qf4+ {[%clk 0:00:05.7]}
67... Kg7 {[%clk 0:00:02.9]} 68. Qxh4 {[%clk 0:00:05]} 68... Qxg2# {[%clk
0:00:02.9]} 0-1

[Event "Early-Titled-Tuesday-Blitz-May-14-2024"]
[Site "Chess.com"]
[Date "2024.05.14"]
[Round "6"]
[White "Siemba"]
[Black "Aemulus20"]
[Result "0-1"]
[WhiteElo "2493"]
[BlackElo "2649"]
[TimeControl "180+1"]
[EndTime "9:10:08 PDT"]
[Termination "Aemulus20 won on time"]

1. e4 {[%clk 0:03:00.9]} 1... c5 {[%clk 0:02:55.2]} 2. Nf3 {[%clk 0:03:01.1]}
2... g6 {[%clk 0:02:55.6]} 3. d4 {[%clk 0:03:01.5]} 3... cxd4 {[%clk 0:02:56.4]}
4. Nxd4 {[%clk 0:03:02.2]} 4... Bg7 {[%clk 0:02:56.9]} 5. c4 {[%clk 0:03:02.8]}
5... Nc6 {[%clk 0:02:57.5]} 6. Be3 {[%clk 0:03:02.3]} 6... Nf6 {[%clk
0:02:58.1]} 7. Nc3 {[%clk 0:03:02.6]} 7... d6 {[%clk 0:02:58.8]} 8. Be2 {[%clk
0:03:02.8]} 8... Nxd4 {[%clk 0:02:59.5]} 9. Bxd4 {[%clk 0:03:02.9]} 9... O-O
{[%clk 0:03:00.2]} 10. O-O {[%clk 0:03:03.2]} 10... a5 {[%clk 0:03:00.9]} 11. b3
{[%clk 0:03:00.7]} 11... Bd7 {[%clk 0:03:01.4]} 12. Qd2 {[%clk 0:03:00.6]} 12...
Bc6 {[%clk 0:03:02]} 13. f3 {[%clk 0:03:01]} 13... Nd7 {[%clk 0:03:02.7]} 14.
Be3 {[%clk 0:03:01.5]} 14... Nc5 {[%clk 0:03:03.4]} 15. Rab1 {[%clk 0:03:01.1]}
15... e6 {[%clk 0:03:03.9]} 16. Rfd1 {[%clk 0:03:01]} 16... Be5 {[%clk
0:03:04.5]} 17. Bd4 {[%clk 0:03:01.5]} 17... Qh4 {[%clk 0:03:02.2]} 18. Bxe5
{[%clk 0:02:50.4]} 18... dxe5 {[%clk 0:03:03.1]} 19. a3 {[%clk 0:02:39.2]} 19...
Rfd8 {[%clk 0:02:21.5]} 20. Qe3 {[%clk 0:02:38.4]} 20... Rxd1+ {[%clk
0:02:10.6]} 21. Nxd1 {[%clk 0:02:36.7]} 21... Qe1+ {[%clk 0:01:55.6]} 22. Bf1
{[%clk 0:02:33.2]} 22... Qxe3+ {[%clk 0:01:54.4]} 23. Nxe3 {[%clk 0:02:33.9]}
23... Kf8 {[%clk 0:01:20.4]} 24. b4 {[%clk 0:02:20.7]} 24... axb4 {[%clk
0:01:21.3]} 25. axb4 {[%clk 0:02:21]} 25... Na4 {[%clk 0:01:22]} 26. Ng4 {[%clk
0:02:17.7]} 26... Rd8 {[%clk 0:01:04.9]} 27. Nxe5 {[%clk 0:02:15.6]} 27... Be8
{[%clk 0:01:05.6]} 28. Nd3 {[%clk 0:02:05.4]} 28... f5 {[%clk 0:00:56.2]} 29. e5
{[%clk 0:02:01.8]} 29... g5 {[%clk 0:00:55.3]} 30. Rc1 {[%clk 0:01:53.8]} 30...
f4 {[%clk 0:00:55]} 31. Nf2 {[%clk 0:01:46.8]} 31... Bg6 {[%clk 0:00:50]} 32. c5
{[%clk 0:01:40.9]} 32... Rc8 {[%clk 0:00:18.5]} 33. Bc4 {[%clk 0:01:24.8]} 33...
Ke7 {[%clk 0:00:17.9]} 34. Ng4 {[%clk 0:01:16.8]} 34... b6 {[%clk 0:00:11.8]}
35. Bb5 {[%clk 0:01:13.7]} 35... Nb2 {[%clk 0:00:11.7]} 36. c6 {[%clk
0:01:09.9]} 36... Nd3 {[%clk 0:00:09.7]} 37. Bxd3 {[%clk 0:01:09.5]} 37... Bxd3
{[%clk 0:00:10.6]} 38. Nf6 {[%clk 0:01:07.9]} 38... Bb5 {[%clk 0:00:10]} 39. c7
{[%clk 0:01:08.3]} 39... h6 {[%clk 0:00:09.3]} 40. Kf2 {[%clk 0:01:05.3]} 40...
Ba4 {[%clk 0:00:06.7]} 41. g3 {[%clk 0:01:02.9]} 41... fxg3+ {[%clk 0:00:06.4]}
42. Kxg3 {[%clk 0:01:00.5]} 42... Bb3 {[%clk 0:00:07]} 43. f4 {[%clk 0:00:56.8]}
43... gxf4+ {[%clk 0:00:05.9]} 44. Kxf4 {[%clk 0:00:57.4]} 44... b5 {[%clk
0:00:06.5]} 45. Kg4 {[%clk 0:00:56.8]} 45... Bc4 {[%clk 0:00:06.4]} 46. Kh5
{[%clk 0:00:54]} 46... Rxc7 {[%clk 0:00:06.8]} 47. Kxh6 {[%clk 0:00:52.7]} 47...
Rc8 {[%clk 0:00:07.2]} 48. Kg7 {[%clk 0:00:51.7]} 48... Ra8 {[%clk 0:00:05.5]}
49. Rg1 {[%clk 0:00:48.1]} 49... Ra2 {[%clk 0:00:05.2]} 50. h4 {[%clk
0:00:48.8]} 50... Rh2 {[%clk 0:00:05.1]} 51. h5 {[%clk 0:00:49]} 51... Re2
{[%clk 0:00:04.3]} 52. h6 {[%clk 0:00:47.7]} 52... Bd3 {[%clk 0:00:04.8]} 53.
Rg5 {[%clk 0:00:45.7]} 53... Bf5 {[%clk 0:00:04]} 54. h7 {[%clk 0:00:40.1]}
54... Bxh7 {[%clk 0:00:03.2]} 55. Nxh7 {[%clk 0:00:38.7]} 55... Re4 {[%clk
0:00:03.3]} 56. Nf6 {[%clk 0:00:36.4]} 56... Rxb4 {[%clk 0:00:03.2]} 57. Kg8
{[%clk 0:00:37]} 57... Rc4 {[%clk 0:00:02.5]} 58. Rg7+ {[%clk 0:00:37.4]} 58...
Kd8 {[%clk 0:00:02.5]} 59. Rb7 {[%clk 0:00:37.8]} 59... b4 {[%clk 0:00:02]} 60.
Kf7 {[%clk 0:00:37.9]} 60... Kc8 {[%clk 0:00:01.4]} 61. Rb5 {[%clk 0:00:34.7]}
61... Kc7 {[%clk 0:00:01.8]} 62. Kxe6 {[%clk 0:00:34.6]} 62... Kc6 {[%clk
0:00:02.4]} 63. Rb8 {[%clk 0:00:34.2]} 63... Rh4 {[%clk 0:00:01.1]} 64. Kf7
{[%clk 0:00:30.5]} 64... Kc7 {[%clk 0:00:02]} 65. Rb5 {[%clk 0:00:27.9]} 65...
Kc6 {[%clk 0:00:02.5]} 66. Ra5 {[%clk 0:00:23.6]} 66... b3 {[%clk 0:00:02.5]}
67. Ra1 {[%clk 0:00:23.4]} 67... Kc5 {[%clk 0:00:02.5]} 68. e6 {[%clk
0:00:22.8]} 68... Kc4 {[%clk 0:00:02.1]} 69. e7 {[%clk 0:00:22.8]} 69... Rh8
{[%clk 0:00:02.5]} 70. Rc1+ {[%clk 0:00:17.2]} 70... Kb4 {[%clk 0:00:02.7]} 71.
Nd5+ {[%clk 0:00:16.3]} 71... Ka3 {[%clk 0:00:02.7]} 0-1

[Event "Early-Titled-Tuesday-Blitz-May-14-2024"]
[Site "Chess.com"]
[Date "2024.05.14"]
[Round "6"]
[White "Rodalquilar"]
[Black "KnightDuta"]
[Result "1/2-1/2"]
[WhiteElo "2875"]
[BlackElo "2741"]
[TimeControl "180+1"]
[EndTime "9:10:11 PDT"]
[Termination "Game drawn by stalemate"]

1. d4 {[%clk 0:03:00.9]} 1... Nf6 {[%clk 0:02:58.7]} 2. Nf3 {[%clk 0:03:01.1]}
2... g6 {[%clk 0:02:58.9]} 3. Bf4 {[%clk 0:03:01.1]} 3... Bg7 {[%clk 0:02:59.6]}
4. e3 {[%clk 0:03:01.7]} 4... O-O {[%clk 0:03:00.2]} 5. Be2 {[%clk 0:03:02.3]}
5... d5 {[%clk 0:03:00.8]} 6. O-O {[%clk 0:03:02.7]} 6... c5 {[%clk 0:03:01.6]}
7. c3 {[%clk 0:03:02.8]} 7... Nc6 {[%clk 0:03:01.9]} 8. h3 {[%clk 0:03:03.4]}
8... Nd7 {[%clk 0:03:01.6]} 9. Nbd2 {[%clk 0:03:03.7]} 9... e5 {[%clk
0:02:59.4]} 10. dxe5 {[%clk 0:03:04.6]} 10... Ndxe5 {[%clk 0:03:00.3]} 11. Nxe5
{[%clk 0:03:05.3]} 11... Nxe5 {[%clk 0:03:01.2]} 12. Nf3 {[%clk 0:03:04.9]}
12... Nc6 {[%clk 0:02:58.8]} 13. Qb3 {[%clk 0:03:04.5]} 13... Na5 {[%clk
0:02:52.9]} 14. Qa3 {[%clk 0:02:57.6]} 14... Qb6 {[%clk 0:02:38.1]} 15. Rfd1
{[%clk 0:02:38.7]} 15... Be6 {[%clk 0:02:26.1]} 16. Ng5 {[%clk 0:02:38.5]} 16...
Rad8 {[%clk 0:02:20.8]} 17. Nxe6 {[%clk 0:02:31.9]} 17... fxe6 {[%clk
0:02:21.7]} 18. Rac1 {[%clk 0:02:32.1]} 18... Nc6 {[%clk 0:02:06.4]} 19. Qb3
{[%clk 0:02:29.1]} 19... Qxb3 {[%clk 0:01:36.1]} 20. axb3 {[%clk 0:02:29.3]}
20... Kf7 {[%clk 0:01:31.5]} 21. Bb5 {[%clk 0:02:21]} 21... Rc8 {[%clk
0:01:27.6]} 22. Ra1 {[%clk 0:02:16.4]} 22... a6 {[%clk 0:01:26.1]} 23. Be2
{[%clk 0:02:15.3]} 23... Ne7 {[%clk 0:01:17.9]} 24. Ra5 {[%clk 0:02:10.4]} 24...
Rc6 {[%clk 0:01:17.4]} 25. Bf3 {[%clk 0:02:08.6]} 25... Rfc8 {[%clk 0:01:14.4]}
26. c4 {[%clk 0:02:04.9]} 26... Rb6 {[%clk 0:01:13.7]} 27. cxd5 {[%clk
0:02:02.9]} 27... exd5 {[%clk 0:01:14.3]} 28. Bxd5+ {[%clk 0:02:00]} 28... Nxd5
{[%clk 0:01:15.2]} 29. Rxd5 {[%clk 0:02:00.6]} 29... Rxb3 {[%clk 0:01:11.1]} 30.
Raxc5 {[%clk 0:01:56.1]} 30... Rxc5 {[%clk 0:01:11]} 31. Rxc5 {[%clk 0:01:57]}
31... Bxb2 {[%clk 0:01:10.4]} 32. Rc7+ {[%clk 0:01:56.8]} 32... Kg8 {[%clk
0:01:11]} 33. e4 {[%clk 0:01:13.4]} 33... a5 {[%clk 0:00:21.7]} 34. e5 {[%clk
0:01:13.6]} 34... a4 {[%clk 0:00:22.3]} 35. e6 {[%clk 0:01:14.3]} 35... Bf6
{[%clk 0:00:22.8]} 36. g3 {[%clk 0:00:43.1]} 36... h5 {[%clk 0:00:13.8]} 37.
Rc8+ {[%clk 0:00:29.7]} 37... Kh7 {[%clk 0:00:10.7]} 38. e7 {[%clk 0:00:28.9]}
38... Bxe7 {[%clk 0:00:11]} 39. Rc7 {[%clk 0:00:29.4]} 39... Rb1+ {[%clk
0:00:10.3]} 40. Kg2 {[%clk 0:00:29.9]} 40... Re1 {[%clk 0:00:07.8]} 41. Bd6
{[%clk 0:00:30.1]} 41... b5 {[%clk 0:00:04.9]} 42. Bxe7 {[%clk 0:00:30.4]} 42...
Kg8 {[%clk 0:00:05.1]} 43. Rb7 {[%clk 0:00:27]} 43... Rb1 {[%clk 0:00:01.8]} 44.
h4 {[%clk 0:00:25.8]} 44... Rb3 {[%clk 0:00:02.7]} 45. Bf6 {[%clk 0:00:21.1]}
45... a3 {[%clk 0:00:02.2]} 46. f3 {[%clk 0:00:15.4]} 46... b4 {[%clk
0:00:02.8]} 47. g4 {[%clk 0:00:15.2]} 47... Rb1 {[%clk 0:00:02.9]} 48. gxh5
{[%clk 0:00:11.3]} 48... gxh5 {[%clk 0:00:03.8]} 49. Ra7 {[%clk 0:00:09.7]}
49... Rc1 {[%clk 0:00:03.2]} 50. Kg3 {[%clk 0:00:04.6]} 50... Rc6 {[%clk
0:00:03.6]} 51. Be7 {[%clk 0:00:04.7]} 51... Rb6 {[%clk 0:00:03.6]} 52. Kf4
{[%clk 0:00:03]} 52... Rb5 {[%clk 0:00:03]} 53. Bd6 {[%clk 0:00:02.5]} 53... b3
{[%clk 0:00:02.5]} 54. Bxa3 {[%clk 0:00:01.6]} 54... b2 {[%clk 0:00:02.4]} 55.
Bxb2 {[%clk 0:00:02.2]} 55... Rxb2 {[%clk 0:00:03.2]} 56. Kg5 {[%clk 0:00:02.9]}
56... Rb5+ {[%clk 0:00:03.7]} 57. Kg6 {[%clk 0:00:03.4]} 57... Kf8 {[%clk
0:00:04]} 58. f4 {[%clk 0:00:03.6]} 58... Rc5 {[%clk 0:00:03.7]} 59. f5 {[%clk
0:00:04]} 59... Rc4 {[%clk 0:00:03.9]} 60. f6 {[%clk 0:00:04]} 60... Rg4+ {[%clk
0:00:03.5]} 61. Kxh5 {[%clk 0:00:04.5]} 61... Rg1 {[%clk 0:00:04.2]} 62. Kh6
{[%clk 0:00:04.9]} 62... Rg2 {[%clk 0:00:04.6]} 63. h5 {[%clk 0:00:05.4]} 63...
Kg8 {[%clk 0:00:03.9]} 64. Rg7+ {[%clk 0:00:04.5]} 64... Kh8 {[%clk 0:00:04.4]}
65. f7 {[%clk 0:00:01.4]} 65... Rg6+ {[%clk 0:00:01.7]} 66. Kxg6 {[%clk
0:00:00.5]} 1/2-1/2

[Event "Early-Titled-Tuesday-Blitz-May-14-2024"]
[Site "Chess.com"]
[Date "2024.05.14"]
[Round "6"]
[White "RuperezA"]
[Black "Eagle_2019"]
[Result "0-1"]
[WhiteElo "2674"]
[BlackElo "2866"]
[TimeControl "180+1"]
[EndTime "9:10:13 PDT"]
[Termination "Eagle_2019 won by resignation"]

1. e4 {[%clk 0:03:00.9]} 1... c6 {[%clk 0:02:59]} 2. Nc3 {[%clk 0:03:00.6]} 2...
d5 {[%clk 0:02:58.7]} 3. Nf3 {[%clk 0:03:01.5]} 3... dxe4 {[%clk 0:02:58.4]} 4.
Nxe4 {[%clk 0:03:02.4]} 4... Nf6 {[%clk 0:02:59.3]} 5. Qe2 {[%clk 0:03:02.7]}
5... Nxe4 {[%clk 0:02:58.9]} 6. Qxe4 {[%clk 0:03:03.6]} 6... Be6 {[%clk
0:02:59.1]} 7. b3 {[%clk 0:02:56.4]} 7... Nd7 {[%clk 0:02:56]} 8. Bb2 {[%clk
0:02:56.3]} 8... Nf6 {[%clk 0:02:56]} 9. Qh4 {[%clk 0:02:54]} 9... Bf5 {[%clk
0:02:54.6]} 10. O-O-O {[%clk 0:02:53.5]} 10... e6 {[%clk 0:02:54.3]} 11. Ne5
{[%clk 0:02:49.2]} 11... Be7 {[%clk 0:02:52.4]} 12. f3 {[%clk 0:02:31.7]} 12...
Qa5 {[%clk 0:02:41.2]} 13. Kb1 {[%clk 0:02:18.6]} 13... Ng4 {[%clk 0:02:30.5]}
14. Qg3 {[%clk 0:01:59.8]} 14... Nxe5 {[%clk 0:02:26.3]} 15. Qxe5 {[%clk
0:02:00.7]} 15... Qxe5 {[%clk 0:02:23.3]} 16. Bxe5 {[%clk 0:02:01.6]} 16... f6
{[%clk 0:02:22.8]} 17. Bc3 {[%clk 0:02:00.3]} 17... O-O-O {[%clk 0:02:21.6]} 18.
a4 {[%clk 0:01:58.5]} 18... e5 {[%clk 0:02:21.3]} 19. Bc4 {[%clk 0:01:55.7]}
19... Bc5 {[%clk 0:02:17.8]} 20. Rhe1 {[%clk 0:01:51.8]} 20... h5 {[%clk
0:02:14.6]} 21. Kb2 {[%clk 0:01:47.1]} 21... Bd4 {[%clk 0:02:10.9]} 22. Bxd4
{[%clk 0:01:36.6]} 22... Rxd4 {[%clk 0:02:11.8]} 23. c3 {[%clk 0:01:37.5]} 23...
Rd7 {[%clk 0:02:11.4]} 24. d3 {[%clk 0:01:24.3]} 24... h4 {[%clk 0:02:03.3]} 25.
Rd2 {[%clk 0:01:18.9]} 25... Kc7 {[%clk 0:01:58.5]} 26. d4 {[%clk 0:01:01.7]}
26... exd4 {[%clk 0:01:57]} 27. cxd4 {[%clk 0:01:01.4]} 27... Rhd8 {[%clk
0:01:53.4]} 28. Kc3 {[%clk 0:01:00.8]} 28... a5 {[%clk 0:01:53.2]} 29. Re3
{[%clk 0:00:48.7]} 29... g5 {[%clk 0:01:42.6]} 30. g4 {[%clk 0:00:44.4]} 30...
hxg3 {[%clk 0:01:39.3]} 31. hxg3 {[%clk 0:00:44.1]} 31... Rd6 {[%clk 0:01:38.3]}
32. g4 {[%clk 0:00:42.2]} 32... Bd7 {[%clk 0:01:35.3]} 33. Re7 {[%clk
0:00:38.5]} 33... Rf8 {[%clk 0:01:34.3]} 34. Rh2 {[%clk 0:00:37.2]} 34... f5
{[%clk 0:01:32.1]} 35. Rhh7 {[%clk 0:00:31.9]} 35... fxg4 {[%clk 0:01:21.3]} 36.
Be6 {[%clk 0:00:24]} 36... Rxf3+ {[%clk 0:01:17.8]} 37. Kb2 {[%clk 0:00:22.8]}
37... g3 {[%clk 0:01:17.1]} 38. Bxd7 {[%clk 0:00:21.5]} 38... Rf2+ {[%clk
0:01:15.3]} 39. Ka3 {[%clk 0:00:21.5]} 39... Rxd4 {[%clk 0:01:14]} 40. Bh3+
{[%clk 0:00:21.3]} 40... Kd6 {[%clk 0:01:06.7]} 41. Rxb7 {[%clk 0:00:20]} 41...
g2 {[%clk 0:01:04.5]} 42. Bxg2 {[%clk 0:00:16.9]} 42... Rxg2 {[%clk 0:01:03.2]}
43. Rbd7+ {[%clk 0:00:17.8]} 43... Kc5 {[%clk 0:01:03.4]} 44. Rxd4 {[%clk
0:00:18.7]} 44... Kxd4 {[%clk 0:01:04.3]} 45. Ra7 {[%clk 0:00:19.2]} 45... g4
{[%clk 0:01:02.8]} 46. Rxa5 {[%clk 0:00:19.8]} 46... g3 {[%clk 0:01:03.1]} 47.
Rg5 {[%clk 0:00:20.4]} 47... Kc3 {[%clk 0:01:01]} 48. a5 {[%clk 0:00:19.3]}
48... Rg1 {[%clk 0:01:00.9]} 49. Ka2 {[%clk 0:00:19.8]} 49... Kb4 {[%clk
0:00:55.1]} 50. a6 {[%clk 0:00:19.7]} 50... Rg2+ {[%clk 0:00:55.2]} 51. Kb1
{[%clk 0:00:17.7]} 51... Kxb3 {[%clk 0:00:55.4]} 52. Kc1 {[%clk 0:00:18.6]}
52... Rg1+ {[%clk 0:00:41.6]} 53. Kd2 {[%clk 0:00:18.4]} 53... g2 {[%clk
0:00:42]} 54. a7 {[%clk 0:00:13.6]} 54... Ra1 {[%clk 0:00:41.7]} 55. Rxg2 {[%clk
0:00:14]} 55... Rxa7 {[%clk 0:00:41.8]} 56. Rg3+ {[%clk 0:00:14.7]} 56... Kb2
{[%clk 0:00:41.9]} 57. Rd3 {[%clk 0:00:09.3]} 57... c5 {[%clk 0:00:39.9]} 58.
Rd8 {[%clk 0:00:06.2]} 58... Rb7 {[%clk 0:00:36.3]} 59. Kd3 {[%clk 0:00:06.1]}
59... Kb3 {[%clk 0:00:36.6]} 60. Kd2 {[%clk 0:00:07]} 60... Kb2 {[%clk
0:00:33.5]} 61. Kd3 {[%clk 0:00:06.4]} 61... Rb4 {[%clk 0:00:34.1]} 62. Rc8
{[%clk 0:00:03.1]} 62... Rd4+ {[%clk 0:00:34.2]} 63. Ke3 {[%clk 0:00:04]} 63...
Rc4 {[%clk 0:00:34.6]} 64. Kd3 {[%clk 0:00:04.2]} 64... Kb3 {[%clk 0:00:33.8]}
65. Ke3 {[%clk 0:00:05.1]} 65... Rc2 {[%clk 0:00:29.1]} 66. Rb8+ {[%clk
0:00:03.4]} 66... Kc3 {[%clk 0:00:29.3]} 67. Rb6 {[%clk 0:00:02.1]} 67... Rh2
{[%clk 0:00:27.2]} 68. Rb8 {[%clk 0:00:03]} 68... c4 {[%clk 0:00:26.4]} 69. Rb7
{[%clk 0:00:02.9]} 69... Rh8 {[%clk 0:00:25.9]} 70. Re7 {[%clk 0:00:01.7]} 70...
Kc2 {[%clk 0:00:25.7]} 71. Kd4 {[%clk 0:00:02.1]} 71... c3 {[%clk 0:00:25.6]}
72. Re2+ {[%clk 0:00:03]} 72... Kb3 {[%clk 0:00:25.9]} 73. Kd3 {[%clk
0:00:02.8]} 73... Rd8+ {[%clk 0:00:25.6]} 74. Ke3 {[%clk 0:00:03.2]} 74... Re8+
{[%clk 0:00:25.8]} 75. Kf2 {[%clk 0:00:04.1]} 75... Rxe2+ {[%clk 0:00:26.1]} 76.
Kxe2 {[%clk 0:00:05]} 76... c2 {[%clk 0:00:27]} 0-1